bitfinex-derivatives/quotes_ETHF0:USTF0_20260116
["timestamp","ask_amount","ask_price","bid_price","bid_amount"]
[1768570817141,1.415658,3299.3,3298.0,40.8]
[1768570817343,0.00340428,3299.6,3298.0,42.58618598]
[1768570817547,1.415661,3299.5,3298.0,42.58618598]
[1768570817851,1.415661,3299.4,3298.0,40.8]
[1768570818058,1.415661,3299.3,3298.0,40.8]
[1768570818256,0.00340428,3299.6,3298.0,40.8]
[1768570818257,1.415661,3299.2,3298.0,40.8]
[1768570818450,1.73416127,3299.5,3298.0,40.8]
[1768570818647,1.73416127,3299.3,3297.5,1.78618598]
[1768570818846,1.73416127,3299.1,3297.2,0.15169]
[1768570819048,1.73416127,3298.9,3297.2,0.15169]
[1768570819247,1.41563681,3298.8,3297.2,0.15169]
[1768570819545,1.88578127,3298.9,3297.0,1.78618598]
[1768570819752,3.14965941,3298.8,3297.0,1.78618598]
[1768570819946,1.41549814,3298.7,3297.0,1.78618598]
[1768570820146,1.41549814,3298.6,3297.0,42.58618598]
[1768570820452,1.41549814,3298.5,3297.0,42.58618598]
[1768570820655,1.41549814,3298.4,3297.0,42.58618598]
[1768570820855,1.41554069,3298.3,3297.0,42.58618598]
[1768570821055,1.73416127,3298.8,3297.0,42.58618598]
[1768570821248,3.14247262,3298.7,3297.0,42.58618598]
[1768570821450,1.4153205,3298.6,3297.0,42.58618598]
[1768570821651,1.4153205,3298.5,3297.0,42.58618598]
[1768570821854,1.4153205,3298.4,3297.0,42.58618598]
[1768570822053,1.4153205,3298.3,3297.0,42.58618598]
[1768570822256,1.72715212,3298.7,3297.0,42.58618598]
[1768570822450,1.41523279,3298.6,3297.0,42.58618598]
[1768570822650,1.41523279,3298.5,3297.0,42.58618598]
[1768570822852,1.41523279,3298.4,3297.0,42.58618598]
[1768570823053,1.41522935,3298.3,3297.0,42.58618598]
[1768570823350,1.72715212,3298.7,3297.0,42.58618598]
[1768570823550,1.41539604,3298.6,3297.0,42.58618598]
[1768570823756,1.41539604,3298.5,3297.0,42.58618598]
[1768570823955,1.41539604,3298.4,3297.0,42.58618598]
[1768570824257,1.41539604,3298.3,3297.0,42.58618598]
[1768570824458,1.72715212,3298.7,3297.0,42.58618598]
[1768570824751,1.41563717,3298.6,3297.0,1.78618598]
[1768570824956,1.41563717,3298.5,3297.0,1.78618598]
[1768570825157,1.41563637,3298.4,3297.0,1.78618598]
[1768570825360,0.15162,3298.9,3297.0,1.78618598]
[1768570825361,1.41563637,3298.3,3297.0,1.78618598]
[1768570825545,0.15162,3298.9,3297.0,1.78618598]
[1768570825750,1.72715212,3298.7,3297.0,1.78618598]
[1768570825944,1.41590177,3298.6,3297.0,1.78618598]
[1768570826155,1.41590177,3298.5,3297.0,1.78618598]
[1768570826356,1.41590177,3298.4,3297.0,1.78618598]
[1768570826558,1.41590177,3298.3,3297.0,1.78618598]
[1768570826758,1.72715212,3298.7,3297.0,1.78618598]
[1768570826959,1.41352982,3298.6,3297.0,1.78618598]
[1768570827258,1.41352982,3298.5,3297.0,1.78618598]
[1768570827460,1.41352982,3298.4,3297.0,1.78618598]
[1768570827656,1.41352982,3298.3,3297.0,1.78618598]
[1768570827862,1.72715212,3298.7,3297.0,1.78618598]
[1768570828163,1.72715212,3298.5,3296.7,0.15171]
[1768570828459,1.41382673,3298.4,3296.7,1.97500259]
[1768570828653,1.41382673,3298.3,3296.7,1.97500259]
[1768570828860,1.41382673,3298.2,3296.7,1.97500259]
[1768570829060,3.51725728,3299.0,3296.9,1.97499259]
[1768570829262,1.41383231,3298.9,3296.9,1.97499259]
[1768570829454,1.41383231,3298.8,3297.1,1.82329259]
[1768570829651,1.41383231,3298.7,3297.1,1.97499259]
[1768570829849,0.47191609,3298.6,3297.1,1.97499259]
[1768570830056,1.8426,3299.2,3297.1,1.97499259]
[1768570830252,1.41409875,3299.1,3297.1,1.97499259]
[1768570830459,1.41409875,3299.0,3297.1,1.97499259]
[1768570830660,1.41409875,3298.9,3297.1,1.97499259]
[1768570830861,1.41409875,3298.8,3297.3,1.82329259]
[1768570831062,1.41409875,3298.7,3297.3,1.82329259]
[1768570831257,0.4720257,3298.6,3297.3,1.82329259]
[1768570831458,1.8426,3299.2,3297.3,1.82329259]
[1768570831654,1.41427567,3299.1,3297.5,1.82329259]
[1768570831965,0.15157,3299.8,3297.7,1.82329259]
[1768570832162,1.41457965,3299.5,3297.8,0.15166]
[1768570832358,1.82625728,3299.9,3297.9,1.97495259]
[1768570832557,1.82625728,3300.4,3298.1,1.82329259]
[1768570832952,1.82625728,3300.4,3298.3,1.82329259]
[1768570833158,1.82625728,3300.4,3298.5,1.82329259]
[1768570833661,1.41401811,3300.3,3298.5,1.82329259]
[1768570833967,1.41401811,3300.2,3298.5,1.82329259]
[1768570834168,0.47197945,3300.1,3298.5,1.82329259]
[1768570834462,0.00333934,3300.1,3298.7,1.82329259]
[1768570836369,0.00333934,3300.1,3298.8,40.8]
[1768570838866,0.00333934,3300.1,3298.8,42.62329259]
[1768570839264,0.00333934,3300.1,3298.9,1.82329259]
[1768570839569,0.00333934,3300.1,3298.9,1.82707744]
[1768570840565,0.00333934,3300.1,3298.9,1.97868744]
[1768570841177,1.82625728,3300.9,3298.9,1.97868744]
[1768570841971,1.82625728,3300.5,3298.9,0.00378485]
[1768570842363,1.82880199,3300.5,3298.9,0.00378485]
[1768570843471,0.00254471,3300.5,3298.9,1.82707744]
[1768570844367,0.00254471,3300.5,3298.9,0.00378485]
[1768570844368,1.82880199,3300.5,3298.9,0.00378485]
[1768570847076,0.15155,3300.4,3298.9,0.00378485]
[1768570847271,1.82625728,3300.3,3298.9,0.00378485]
[1768570847666,1.97780728,3300.3,3298.9,0.00378485]
[1768570847977,1.82625728,3300.1,3298.9,0.00378485]
[1768570852577,0.00254471,3300.5,3298.9,0.00378485]
[1768570852877,1.40674398,3300.4,3298.9,0.00378485]
[1768570853073,1.40674398,3300.3,3298.9,0.00378485]
[1768570853276,0.00254471,3300.5,3298.9,0.00378485]
[1768570853465,1.40716562,3300.4,3298.9,0.00378485]
[1768570853669,1.40716562,3300.3,3298.9,0.00378485]
[1768570853871,0.00254471,3300.5,3298.9,0.00378485]
[1768570854183,1.40718947,3300.4,3298.9,0.00378485]
[1768570854479,1.40718947,3300.3,3298.9,0.00378485]
[1768570854681,0.00254471,3300.5,3298.9,0.00378485]
[1768570854877,1.40771087,3300.4,3298.9,0.00378485]
[1768570855078,1.40771087,3300.3,3298.9,0.00378485]
[1768570855276,0.00254471,3300.5,3298.9,0.00378485]
[1768570855476,1.40826524,3300.4,3298.9,0.00378485]
[1768570855678,1.40826524,3300.3,3298.9,0.00378485]
[1768570855978,0.00254471,3300.5,3298.9,0.00378485]
[1768570856175,1.40823257,3300.4,3298.9,0.00378485]
[1768570856376,1.40823257,3300.3,3298.9,0.00378485]
[1768570856575,1.40823257,3300.2,3298.9,0.00378485]
[1768570856774,0.00254471,3300.5,3298.9,0.00378485]
[1768570856977,1.40889099,3300.4,3298.9,0.00378485]
[1768570857285,1.40889099,3300.3,3298.9,0.00378485]
[1768570857483,1.40889099,3300.2,3298.9,0.00378485]
[1768570857692,0.00254471,3300.5,3298.9,1.89806288]
[1768570858372,0.94256931,3300.4,3298.9,1.89806288]
[1768570858568,0.00254471,3300.5,3298.9,1.89806288]
[1768570858776,0.94257118,3300.4,3298.9,1.89806288]
[1768570858982,0.00254471,3300.5,3298.9,1.89806288]
[1768570859181,0.94257182,3300.4,3298.9,1.89806288]
[1768570859378,0.00254471,3300.5,3298.9,1.89806288]
[1768570859682,1.40329058,3300.4,3298.9,1.89806288]
[1768570859869,0.00254471,3300.5,3298.9,1.89806288]
[1768570860072,1.40329057,3300.4,3298.9,1.89806288]
[1768570860269,1.40425014,3300.3,3298.9,1.89806288]
[1768570860485,0.00254471,3300.5,3298.9,1.89806288]
[1768570860681,1.40425734,3300.4,3298.9,1.89806288]
[1768570860875,1.40425734,3300.3,3298.9,1.89806288]
[1768570861074,0.00254471,3300.5,3298.9,1.89806288]
[1768570861286,1.40426186,3300.4,3298.9,1.89806288]
[1768570861584,1.40426186,3300.3,3298.9,1.89806288]
[1768570861777,1.40426186,3300.2,3298.9,0.15539485]
[1768570861977,1.76893158,3300.5,3298.9,0.15539485]
[1768570862179,1.40564755,3300.4,3298.9,0.15539485]
[1768570862383,1.40564755,3300.3,3298.9,0.15539485]
[1768570862582,1.40564755,3300.2,3298.9,0.15539485]
[1768570862784,1.76893158,3300.5,3298.9,0.15539485]
[1768570863084,3.17243293,3300.4,3298.9,0.15539485]
[1768570863381,1.40604606,3300.3,3298.9,0.15539485]
[1768570863583,1.40604606,3300.2,3298.9,0.15539485]
[1768570863783,1.76638687,3300.4,3298.9,0.15539485]
[1768570863986,1.40602842,3300.3,3298.9,0.15539485]
[1768570864279,1.40602842,3300.2,3298.9,0.15539485]
[1768570864482,1.76638687,3300.4,3298.9,0.15539485]
[1768570864784,1.40599284,3300.3,3298.9,1.89806288]
[1768570864982,1.40599284,3300.2,3298.9,1.89806288]
[1768570865183,0.00254471,3300.5,3298.9,1.89806288]
[1768570865383,1.40560976,3300.4,3298.9,1.89806288]
[1768570865582,1.40560908,3300.3,3298.9,1.89806288]
[1768570865784,1.40560908,3300.2,3298.9,1.89806288]
[1768570865984,0.00254471,3300.5,3298.9,1.89806288]
[1768570866182,1.40557768,3300.4,3298.9,1.89806288]
[1768570866376,1.40557768,3300.3,3298.9,1.89806288]
[1768570866575,1.40557768,3300.2,3298.9,1.89806288]
[1768570866779,0.00254471,3300.5,3298.9,1.89806288]
[1768570866978,1.40554394,3300.4,3298.9,1.89806288]
[1768570867179,1.40554394,3300.3,3298.9,1.89806288]
[1768570867380,0.94479457,3300.2,3298.9,1.89806288]
[1768570867679,0.00254471,3300.5,3298.9,1.89806288]
[1768570867885,1.39731006,3300.4,3298.9,1.89806288]
[1768570868090,1.39731087,3300.3,3298.9,1.89806288]
[1768570868284,0.94477005,3300.2,3298.9,1.89806288]
[1768570868485,0.00254471,3300.5,3298.9,1.89806288]
[1768570868684,1.39727883,3300.4,3298.9,1.89806288]
[1768570868890,1.39727883,3300.3,3298.9,1.89806288]
[1768570869084,0.94474882,3300.2,3298.9,1.89806288]
[1768570869286,0.00254471,3300.5,3298.9,1.89806288]
[1768570869583,1.39712927,3300.4,3298.9,1.89806288]
[1768570869779,1.39712927,3300.3,3298.9,1.89806288]
[1768570869983,0.94464067,3300.2,3299.0,1.89427803]
[1768570870189,0.00254471,3300.5,3299.2,1.74266803]
[1768570871288,0.00254471,3300.5,3299.6,0.15158]
[1768570871488,0.00254471,3300.5,3299.7,40.8]
[1768570871682,1.76638687,3301.3,3299.7,40.95157]
[1768570871882,1.39646601,3301.2,3299.7,40.95157]
[1768570872083,1.39646601,3301.1,3299.7,40.95157]
[1768570872282,0.94397407,3301.0,3299.7,40.95157]
[1768570872483,1.76638687,3301.3,3299.7,40.95157]
[1768570872682,1.39587351,3301.2,3299.7,40.95157]
[1768570872884,1.39587351,3301.1,3299.7,40.95157]
[1768570873190,0.94329728,3301.0,3299.7,40.95157]
[1768570873387,1.76944111,3301.3,3299.7,40.95157]
[1768570873588,1.76638687,3301.1,3299.7,40.95157]
[1768570873789,0.94325278,3301.0,3299.7,40.95157]
[1768570873989,1.76638687,3301.1,3299.7,40.95157]
[1768570874190,0.94325054,3301.0,3299.7,40.95157]
[1768570874390,1.76638687,3301.1,3299.7,40.95157]
[1768570874581,0.94302681,3301.0,3299.7,40.95157]
[1768570874786,1.76638687,3301.1,3299.7,40.95157]
[1768570874986,0.94302655,3301.0,3299.7,40.95157]
[1768570875187,1.76638687,3301.1,3299.7,40.95157]
[1768570875389,0.94287258,3301.0,3299.7,40.95157]
[1768570875594,1.76638687,3301.1,3299.7,40.95157]
[1768570875788,0.94281484,3301.0,3299.7,40.95157]
[1768570875988,1.76638687,3301.1,3299.7,40.95157]
[1768570876191,0.94281562,3301.0,3299.7,40.95157]
[1768570876390,1.76638687,3301.0,3299.7,40.95157]
[1768570878784,0.00305424,3301.3,3299.7,40.95157]
[1768570879097,0.94255793,3301.2,3299.8,0.15157]
[1768570879288,0.00305424,3301.3,3299.8,0.15157]
[1768570879289,0.94253691,3301.1,3300.0,0.15156]
[1768570879489,0.00305424,3301.3,3300.0,0.15156]
[1768570881796,1.88184497,3301.1,3299.5,5.07]
[1768570882300,1.88184497,3301.1,3299.5,5.22159]
[1768570882503,1.88184497,3301.1,3299.6,0.15158]
[1768570882703,1.88184497,3301.1,3299.5,5.07]
[1768570882704,1.88184497,3301.1,3299.7,0.15158]
[1768570883505,0.00305424,3301.3,3299.7,0.15158]
[1768570883700,0.94251843,3301.2,3299.7,0.15158]
[1768570883902,0.94251843,3301.1,3299.7,0.15158]
[1768570884096,0.00305424,3301.3,3299.7,0.15158]
[1768570884307,0.94242688,3301.2,3299.7,0.15158]
[1768570884507,0.00305424,3301.3,3299.8,0.15157]
[1768570884817,0.94252922,3301.2,3299.8,0.15157]
[1768570885019,0.00305424,3301.3,3299.8,0.15157]
[1768570885216,0.94252993,3301.2,3299.8,0.15157]
[1768570885421,0.00305424,3301.3,3299.8,0.15157]
[1768570885613,0.94261838,3301.2,3299.8,0.15157]
[1768570885812,0.00305424,3301.3,3299.9,0.15157]
[1768570886011,0.94262178,3301.2,3300.0,40.8]
[1768570886217,0.00305424,3301.3,3300.0,40.8]
[1768570886420,0.94261327,3301.2,3300.0,40.8]
[1768570886718,0.00305424,3301.3,3300.0,40.8]
[1768570887017,0.94274597,3301.2,3300.0,40.8]
[1768570887217,0.00305424,3301.3,3300.0,40.8]
[1768570887418,0.9427451,3301.2,3300.0,40.8]
[1768570887721,0.00305424,3301.3,3300.0,40.8]
[1768570887927,0.94291148,3301.2,3300.0,40.8]
[1768570888113,0.00305424,3301.3,3300.0,40.8]
[1768570888310,0.94291699,3301.2,3300.0,40.8]
[1768570888510,0.00305424,3301.3,3300.0,40.8]
[1768570888712,0.94293865,3301.2,3300.0,40.8]
[1768570888906,0.00305424,3301.3,3300.0,40.8]
[1768570889111,0.94293868,3301.2,3300.0,40.8]
[1768570889311,0.00305424,3301.3,3300.0,40.8]
[1768570889617,0.94298331,3301.2,3300.0,40.8]
[1768570889918,0.00305424,3301.3,3300.0,40.8]
[1768570890120,0.94298364,3301.2,3300.0,40.8]
[1768570890322,0.00305424,3301.3,3300.0,40.8]
[1768570890514,0.94304851,3301.2,3300.0,40.8]
[1768570890714,0.00305424,3301.3,3300.1,0.15156]
[1768570891021,0.00305424,3301.3,3300.0,1.78075948]
[1768570891519,0.00305424,3301.3,3300.3,0.15155]
[1768570892110,1.22442444,3301.0,3300.3,0.15155]
[1768570892509,0.00305424,3301.3,3300.1,40.8]
[1768570892714,1.22442444,3301.0,3300.1,40.8]
[1768570892917,1.22442444,3301.2,3300.1,40.8]
[1768570894418,1.22747868,3301.3,3300.1,40.8]
[1768570897934,0.00305424,3301.3,3300.1,40.8]
[1768570898123,1.22747868,3301.3,3300.1,40.8]
[1768570898429,1.22747868,3301.3,3300.1,40.95156]
[1768570899421,1.85659369,3302.0,3300.4,1.37596444]
[1768570899617,2.60469615,3301.9,3300.5,5.083]
[1768570899817,1.38027171,3301.8,3300.5,5.083]
[1768570900018,1.38027171,3301.7,3300.5,5.083]
[1768570900214,0.94458209,3301.6,3300.5,5.083]
[1768570900424,0.94458209,3301.5,3300.5,5.23454]
[1768570900625,0.00235631,3301.6,3300.5,5.23454]
[1768570900825,0.00235631,3301.6,3300.6,1.37596444]
[1768570901025,0.00235631,3301.6,3300.6,3.15672392]
[1768570901224,1.22442444,3302.2,3300.6,3.15672392]
[1768570901432,1.37898581,3302.1,3300.6,1.93229948]
[1768570901616,1.37898581,3302.0,3300.7,1.22442444]
[1768570901926,0.94407655,3301.9,3300.9,1.22442444]
[1768570902230,0.00371548,3301.9,3300.9,1.22442444]
[1768570906428,0.00371548,3301.9,3300.8,0.15153]
[1768570906634,0.00371548,3301.9,3300.9,5.087]
[1768570906932,1.22442444,3301.6,3300.9,5.087]
[1768570907125,1.22442444,3301.6,3300.8,0.15153]
[1768570909234,1.22442444,3301.8,3300.8,0.15153]
[1768570910330,1.22442444,3301.8,3300.1,40.95155]
[1768570910331,1.22442444,3301.4,3300.1,40.95155]
[1768570910530,1.22442444,3301.4,3300.6,5.089]
[1768570911931,1.22442444,3301.4,3300.1,40.95155]
[1768570912132,1.22442444,3301.4,3300.2,5.09]
[1768570915040,1.95240449,3301.9,3300.3,1.22442444]
[1768570915241,1.22442444,3301.7,3300.3,1.22442444]
[1768570915541,0.94279935,3301.6,3300.3,1.22442444]
[1768570919444,1.22442444,3301.5,3300.2,5.24155]
[1768570922648,1.22442444,3301.2,3300.2,0.15155]
[1768570922844,1.94868901,3301.4,3300.1,40.8]
[1768570922845,1.22442444,3300.8,3300.1,40.8]
[1768570923040,1.22442444,3300.8,3300.0,5.102]
[1768570923239,1.22442444,3300.8,3299.6,0.15158]
[1768570923445,1.22442444,3300.8,3299.7,4.218]
[1768570923641,1.22442444,3301.1,3299.8,40.8]
[1768570927751,1.22442444,3301.7,3300.3,1.22442444]
[1768570927949,1.35281484,3301.6,3300.3,1.22442444]
[1768570928254,0.94245459,3301.5,3300.4,5.11]
[1768570928448,0.94245459,3301.4,3300.4,5.11]
[1768570928647,1.22442444,3301.7,3300.4,5.11]
[1768570928848,0.94249371,3301.6,3300.4,5.11]
[1768570929050,0.94249371,3301.5,3300.4,5.11]
[1768570929247,0.94249371,3301.4,3300.4,5.11]
[1768570929448,1.22442444,3301.5,3300.4,5.11]
[1768570929649,0.94247979,3301.4,3300.4,5.11]
[1768570929858,1.22442444,3301.5,3300.4,5.11]
[1768570930052,1.22813992,3301.9,3300.5,1.22442444]
[1768570930357,1.22442444,3301.7,3300.4,5.26154]
[1768570930549,0.9425949,3301.6,3300.4,5.26154]
[1768570930750,1.22442444,3301.7,3300.4,5.26154]
[1768570931053,0.00371548,3301.9,3300.4,6.48596444]
[1768570931357,0.94264374,3301.8,3300.6,1.22442444]
[1768570931551,0.94264374,3301.7,3300.6,1.22442444]
[1768570931752,0.00371548,3301.9,3300.6,1.22442444]
[1768570931952,0.94399435,3301.8,3300.6,1.22442444]
[1768570932250,0.00371548,3301.9,3300.6,1.22442444]
[1768570932453,0.94403841,3301.8,3300.6,1.22442444]
[1768570932654,0.00371548,3301.9,3300.6,1.22442444]
[1768570934058,0.00371548,3301.9,3300.9,1.22442444]
[1768570935560,0.00371548,3301.9,3300.7,1.97164281]
[1768570935958,1.94868901,3302.7,3301.0,1.97163281]
[1768570936157,0.94426517,3302.6,3301.0,1.97163281]
[1768570936352,1.34968273,3302.5,3301.0,1.97163281]
[1768570936549,0.94426517,3302.4,3301.1,40.8]
[1768570936758,0.94426517,3302.3,3301.1,40.8]
[1768570936955,1.94868901,3302.7,3301.1,40.8]
[1768570937160,0.00356948,3302.3,3301.1,40.8]
[1768570938158,0.00356948,3302.3,3301.1,40.95151]
[1768570938664,0.00356948,3302.3,3301.2,5.104]
[1768570938963,0.00356948,3302.3,3301.2,5.25551]
[1768570939353,0.00356948,3302.3,3301.2,7.07562281]
[1768570939557,1.94868901,3303.1,3301.3,1.82011281]
[1768570939758,1.34859976,3303.0,3301.3,1.97161281]
[1768570939963,0.94358798,3302.9,3301.3,1.97161281]
[1768570940165,0.94358798,3303.0,3301.3,1.97161281]
[1768570940662,0.94616912,3303.0,3301.4,1.97161281]
[1768570941366,0.00258114,3303.0,3301.4,1.97161281]
[1768570942164,0.00258114,3303.0,3301.5,40.8]
[1768570943258,1.85363477,3303.0,3301.5,40.8]
[1768570943459,1.85105363,3302.8,3301.5,40.8]
[1768570943761,1.85105363,3302.8,3301.5,45.908]
[1768570944160,2.79424849,3302.7,3301.5,45.908]
[1768570944365,2.79424849,3302.7,3301.5,5.108]
[1768570945065,1.85105363,3302.7,3301.5,5.108]
[1768570950774,0.00258114,3303.0,3301.5,7.07940074]
[1768570951672,0.00258114,3303.0,3301.5,7.23089074]
[1768570952266,0.00258114,3303.0,3301.6,0.15149]
[1768570956363,0.00258114,3303.0,3301.7,0.15148]
[1768570957179,0.00258114,3303.0,3301.5,7.07940074]
[1768570957180,0.00258114,3303.0,3301.6,3.19537228]
[1768570957472,0.00258114,3303.0,3301.7,1.97140074]
[1768570958574,0.00258114,3303.0,3302.0,0.15147]
[1768570959670,1.98638339,3304.1,3302.4,1.97140074]
[1768570959865,0.9434798,3304.0,3302.5,4.65640074]
[1768570960065,1.98638339,3304.1,3302.6,40.8]
[1768570960267,1.98638339,3304.5,3302.7,1.97140074]
[1768570960467,1.98638339,3304.5,3302.8,1.97140074]
[1768570960661,1.98918707,3304.5,3302.8,1.97140074]
[1768570961072,0.00280368,3304.5,3303.0,1.97140074]
[1768570961471,0.00280368,3304.5,3303.1,3.19537228]
[1768570961675,0.00280368,3304.5,3303.2,1.97140074]
[1768570961867,0.00280368,3304.5,3303.3,5.113]
[1768570962177,1.98638339,3305.3,3303.4,2.12281074]
[1768570962371,1.98638339,3305.3,3303.9,1.22397154]
[1768570962575,1.98638339,3305.9,3303.9,1.22397154]
[1768570962777,1.98638339,3305.7,3303.9,1.22397154]
[1768570962970,0.93968368,3305.6,3303.9,1.22787202]
[1768570963178,1.98874015,3305.7,3303.9,1.22787202]
[1768570963378,1.98874015,3305.7,3303.9,0.00390048]
[1768570963974,1.98638339,3305.6,3303.9,0.00390048]
[1768570964378,1.98638339,3305.2,3303.9,3.71590048]
[1768570964773,1.98874015,3305.7,3303.9,3.71590048]
[1768570964972,2.9241567,3305.6,3303.9,3.71590048]
[1768570965172,1.98638339,3305.6,3303.9,3.71590048]
[1768570965978,1.98638339,3305.6,3304.0,40.8]
[1768570969279,1.98638339,3305.6,3304.1,0.15137]
[1768570969482,1.98638339,3305.6,3304.0,40.8]
[1768570969682,1.98638339,3305.6,3304.1,5.109]
[1768570969885,1.98638339,3305.6,3304.0,40.8]
[1768570970086,1.98638339,3305.6,3304.1,5.109]
[1768570973287,1.98638339,3305.6,3304.0,40.8]
[1768570973478,1.98638339,3305.6,3304.1,5.11]
[1768570975282,1.98638339,3305.6,3304.0,40.8]
[1768570975482,3.20612352,3305.0,3303.9,0.00390048]
[1768570975878,1.98215198,3304.9,3303.9,0.00390048]
[1768570976988,2.13347198,3305.4,3303.9,0.00390048]
[1768570977177,0.00235676,3305.7,3303.9,0.00390048]
[1768570977372,0.93588312,3305.6,3303.9,0.00390048]
[1768570977587,0.00235676,3305.7,3304.0,3.18145714]
[1768570977783,0.00235676,3305.7,3304.1,1.9574856]
[1768570978179,0.00235676,3305.7,3304.2,5.108]
[1768570978885,1.22397154,3305.6,3304.2,5.108]
[1768570979087,1.98215198,3305.5,3304.3,5.106]
[1768570979988,0.00235676,3305.7,3304.3,5.106]
[1768570981192,0.00235676,3305.7,3304.3,7.0634856]
[1768570981378,0.00235676,3305.7,3304.4,1.9574856]
[1768570982094,0.00235676,3305.7,3304.5,40.8]
[1768570982978,1.98215198,3305.6,3304.3,5.25236]
[1768570983494,1.98215198,3305.6,3304.4,40.8]
[1768570983993,1.98215198,3305.6,3304.3,5.25236]
[1768570984387,1.98215198,3305.6,3304.3,46.05236]
[1768570985692,1.98215198,3305.6,3304.3,40.95136]
[1768570985892,1.98215198,3305.6,3304.3,45.902]
[1768570986192,1.98215198,3305.6,3304.0,1.9574856]
[1768570986488,0.93935553,3305.5,3304.1,5.103]
[1768570986691,1.98215198,3305.6,3304.1,45.903]
[1768570986890,0.93935481,3305.5,3304.1,45.903]
[1768570987085,1.98215198,3305.6,3304.1,45.903]
[1768570987287,0.94035592,3305.5,3304.1,45.903]
[1768570987778,0.94035592,3305.4,3304.1,45.903]
[1768570987978,0.00235676,3305.7,3304.1,45.903]
[1768570988294,0.94041623,3305.6,3304.1,47.8604856]
[1768570988490,0.94041623,3305.5,3304.2,2.1088556]
[1768570988685,0.94041623,3305.4,3304.2,2.1088556]
[1768570988885,0.00235676,3305.7,3304.2,2.1088556]
[1768570989085,0.94139642,3305.6,3304.2,2.1088556]
[1768570989285,0.94139642,3305.5,3304.2,2.1088556]
[1768570989496,0.94139642,3305.4,3304.2,2.1088556]
[1768570989789,0.94139642,3305.3,3304.2,2.1088556]
[1768570989995,0.00235676,3305.7,3304.4,1.9574856]
[1768570990495,2.16487813,3306.5,3304.5,1.82266441]
[1768570990792,2.16487813,3306.7,3304.8,1.97164765]
[1768570990986,0.38529623,3306.6,3304.9,5.106]
[1768570991187,0.38529623,3306.5,3304.9,5.106]
[1768570991387,1.98215198,3306.7,3304.9,5.106]
[1768570991596,0.37032357,3306.6,3304.9,5.106]
[1768570991888,1.98583218,3306.7,3304.9,5.106]
[1768570992086,0.37032499,3306.6,3304.9,5.106]
[1768570992283,1.98583218,3306.7,3304.9,5.106]
[1768570992694,0.0036802,3306.7,3305.0,1.8335858]
[1768570992895,0.0036802,3306.7,3305.5,0.15131]
[1768570993288,0.0036802,3306.7,3305.6,40.8]
[1768570994894,0.0036802,3306.7,3305.5,5.25431]
[1768570995502,0.0036802,3306.7,3305.5,46.05431]
[1768570998796,0.0036802,3306.7,3305.5,40.95131]
[1768570999001,0.0036802,3306.7,3305.6,5.107]
[1768570999498,0.0036802,3306.7,3305.5,40.95131]
[1768570999693,0.0036802,3306.7,3305.6,5.108]
[1768571000502,1.98583218,3306.7,3305.0,3.17833]
[1768571000799,1.98583218,3306.7,3305.1,5.26133]
[1768571001000,1.98583218,3306.7,3305.2,40.8]
[1768571001401,1.98583218,3306.7,3305.3,5.11]
[1768571001899,1.98583218,3306.7,3305.4,5.11]
[1768571002293,0.93843527,3306.6,3305.4,5.11]
[1768571002494,0.93843527,3306.5,3305.4,5.11]
[1768571002695,0.93843527,3306.4,3305.4,5.11]
[1768571002895,1.98583218,3306.7,3305.4,5.11]
[1768571003095,0.93843529,3306.6,3305.4,5.11]
[1768571003302,1.22091363,3306.4,3305.4,5.11]
[1768571004300,0.0036802,3306.7,3305.8,1.22091363]
[1768571004502,1.22091363,3307.2,3306.0,1.22091363]
[1768571004808,1.22091363,3307.0,3306.0,3.482]
[1768571005102,0.93870734,3306.9,3306.0,3.482]
[1768571005304,1.22091363,3307.0,3306.0,3.482]
[1768571005605,0.93827447,3306.9,3306.0,3.482]
[1768571005903,1.22443071,3307.0,3306.0,3.482]
[1768571006103,0.93827435,3306.9,3306.0,3.482]
[1768571006296,1.22443071,3307.0,3306.0,3.482]
[1768571006604,0.93842463,3306.9,3306.0,3.482]
[1768571006794,1.22443071,3307.0,3306.0,3.482]
[1768571006995,0.93841705,3306.9,3306.0,3.482]
[1768571007196,1.22443071,3307.0,3306.0,3.482]
[1768571007399,0.93857118,3306.9,3305.7,0.1513]
[1768571007599,1.22091363,3306.8,3305.8,5.11]
[1768571009303,1.22091363,3306.9,3305.6,40.8]
[1768571009600,0.00351708,3307.0,3305.6,40.8]
[1768571009601,0.00351708,3307.0,3306.0,1.22091363]
[1768571009902,1.92280643,3307.7,3306.4,1.22091363]
[1768571010097,0.93882601,3307.6,3306.5,5.114]
[1768571010300,1.92280643,3308.1,3306.8,1.22091363]
[1768571010499,0.93877381,3308.0,3307.0,1.22091363]
[1768571010700,0.93877381,3307.9,3307.0,1.22403451]
[1768571010899,0.00379666,3308.0,3307.0,1.22403451]
[1768571011098,0.93880291,3307.9,3307.0,0.00312088]
[1768571011299,0.00379666,3308.0,3307.0,0.00312088]
[1768571012503,1.92660309,3308.0,3307.0,0.00312088]
[1768571012904,2.86083544,3307.9,3307.0,0.00312088]
[1768571013207,1.92280643,3307.9,3307.0,0.00312088]
[1768571013805,1.92280643,3307.7,3306.1,0.15128]
[1768571014003,1.92280643,3307.5,3305.8,3.649]
[1768571014197,0.93783272,3307.4,3305.8,3.649]
[1768571014503,1.92280643,3307.5,3305.8,3.649]
[1768571014702,0.9378304,3307.4,3305.8,3.65188066]
[1768571014904,1.92280643,3307.5,3305.8,0.00288066]
[1768571015209,2.86062942,3307.4,3305.9,5.107]
[1768571015410,1.92280643,3307.4,3305.9,5.107]
[1768571019303,0.9397976,3307.3,3305.9,5.107]
[1768571019501,1.92280643,3307.4,3305.9,5.107]
[1768571019710,0.93979777,3307.3,3305.9,5.107]
[1768571019912,1.92280643,3307.4,3305.9,5.107]
[1768571020212,0.93979635,3307.3,3305.9,5.107]
[1768571020402,1.92280643,3307.4,3305.9,5.107]
[1768571020603,0.94023694,3307.3,3305.8,0.00288066]
[1768571020802,1.92280643,3307.4,3305.9,5.108]
[1768571021008,0.94024073,3307.3,3305.9,5.108]
[1768571021307,1.92280643,3307.4,3305.8,0.00288066]
[1768571021614,0.93961837,3307.3,3305.8,0.00288066]
[1768571021808,1.92280643,3307.4,3305.8,0.00288066]
[1768571022112,2.86242475,3307.3,3305.8,5.11188066]
[1768571022311,0.93961832,3307.2,3305.8,5.11188066]
[1768571023103,0.93961832,3307.2,3305.8,5.26318066]
[1768571024115,2.07401643,3307.8,3305.8,5.26318066]
[1768571024415,2.86256624,3307.7,3305.8,5.26318066]
[1768571024715,2.86256624,3307.6,3305.8,5.26318066]